bitfinex-derivatives/quotes_SOLF0:USTF0_20250215
["timestamp","ask_amount","ask_price","bid_price","bid_amount"]
[1739606839104,5.1360961,195.97,195.93,9.03352381]
[1739606839703,0.0339961,195.97,195.93,9.03352381]
[1739606840104,0.0339961,195.97,195.95,8.99786477]
[1739606841598,0.0339961,195.97,195.95,14.10036477]
[1739606843097,5.1005,196.03,195.96,5.1023]
[1739606843306,5.1005,196.03,195.99,8.99786477]
[1739606844301,5.1345461,196.03,195.99,9.03405549]
[1739606844497,0.0340461,196.03,195.99,9.03405549]
[1739606845206,0.0340461,196.03,196.01,8.99786477]
[1739606847807,0.0340461,196.03,195.99,9.03405549]
[1739606848203,5.1345461,196.03,195.99,9.03405549]
[1739606848605,0.0340461,196.03,195.99,9.03405549]
[1739606850813,5.1345461,196.03,195.99,9.03405549]
[1739606851106,0.0340461,196.03,195.99,9.03405549]
[1739606859321,0.0340461,196.03,196.01,8.99786477]
[1739606859820,0.0340461,196.03,196.02,5.1007]
[1739606862828,0.0340461,196.03,196.01,14.09886477]
[1739606863722,0.0340461,196.03,196.01,8.99786477]
[1739606863927,0.0340461,196.03,196.02,5.1007]
[1739606865929,0.0340461,196.03,196.01,8.99786477]
[1739606866634,0.0340461,196.03,196.02,5.1007]
[1739606893646,0.0340461,196.03,196.01,8.99786477]
[1739606893840,5.1345461,196.03,195.99,9.03405549]
[1739606895745,0.0340461,196.03,195.99,14.13555549]
[1739606897249,0.0340461,196.03,195.99,9.03405549]
[1739606897953,5.1345461,196.03,195.99,9.03405549]
[1739606899147,5.1007,196.02,195.99,0.03619072]
[1739606901052,5.1345461,196.03,195.99,0.03619072]
[1739606901252,0.0340461,196.03,195.99,0.03619072]
[1739606901753,0.0340461,196.03,195.99,9.03405549]
[1739606901955,0.0340461,196.03,195.99,14.13545549]
[1739606902953,0.0340461,196.03,195.99,9.03405549]
[1739606904757,0.0340461,196.03,195.99,0.03619072]
[1739606905456,5.101,196.01,195.99,0.03619072]
[1739606908859,12.15066477,196.02,195.99,0.03619072]
[1739606909159,5.1012,196.01,195.99,0.03619072]
[1739606909559,12.15066477,196.02,195.99,0.03619072]
[1739606909759,5.101,196.01,195.99,0.03619072]
[1739606909954,12.15066477,196.02,195.95,8.99786477]
[1739606910155,8.99786477,196.0,195.95,8.99786477]
[1739606911165,8.99786477,196.0,195.96,0.03366157]
[1739606912161,5.1018,195.98,195.96,0.03366157]
[1739606915263,0.03228669,195.99,195.96,0.03366157]
[1739606915767,5.13398669,195.99,195.96,0.03366157]
[1739606919570,0.03228669,195.99,195.96,0.03366157]
[1739606919868,5.102,195.97,195.96,0.03366157]
[1739606925070,5.1018,195.98,195.96,0.03366157]
[1739606930174,5.102,195.97,195.96,0.03366157]
[1739606932479,14.09986477,195.97,195.96,0.03366157]
[1739606933983,8.99786477,195.97,195.91,8.99786477]
[1739606934683,5.1028,195.94,195.91,8.99786477]
[1739606935383,5.1028,195.94,195.91,9.03028629]
[1739606935384,5.13886964,195.94,195.91,9.03028629]
[1739606937189,0.03606964,195.94,195.91,0.03242152]
[1739606937389,5.1031,195.93,195.91,0.03242152]
[1739606938381,5.13886964,195.94,195.91,0.03242152]
[1739606940286,0.03606964,195.94,195.93,8.99786477]
[1739606943893,0.03606964,195.94,195.93,14.10096477]
[1739606944798,1.5819,196.03,195.96,5.1021]
[1739606945091,1.5819,196.03,195.98,8.99786477]
[1739606945292,10.57976477,196.03,195.98,8.99786477]
[1739606945790,8.99786477,196.03,195.98,8.99786477]
[1739606945990,0.03920831,196.02,195.99,0.03282841]
[1739606949293,5.13990831,196.02,195.99,0.03282841]
[1739606949495,0.03920831,196.02,195.99,0.03282841]
[1739606951891,5.14000831,196.02,195.99,0.03282841]
[1739606953298,5.1012,196.0,195.99,0.03282841]
[1739606954692,0.03920831,196.02,195.99,0.03282841]
[1739606954995,8.99786477,196.01,195.99,0.03282841]
[1739606955196,5.1012,196.0,195.99,0.03282841]
[1739606955495,8.99786477,196.01,195.92,8.99786477]
[1739606955686,8.99786477,195.98,195.92,8.99786477]
[1739606955889,5.102,195.97,195.9,8.99786477]
[1739606956594,0.03518439,195.95,195.92,0.03631058]
[1739606957391,0.03518439,195.95,195.92,9.03417535]
[1739606960894,0.03518439,195.95,195.92,0.03631058]
[1739606962096,5.1028,195.94,195.92,0.03631058]
[1739606962291,0.03518439,195.95,195.92,0.03631058]
[1739606963598,5.1028,195.94,195.92,0.03631058]
[1739606964392,5.1031,195.93,195.92,0.03631058]
[1739606977313,14.10066477,195.94,195.92,0.03631058]
[1739606977811,0.03518439,195.95,195.92,0.03631058]
[1739606980213,0.03518439,195.95,195.92,9.03417535]
[1739606984809,0.03518439,195.95,195.94,8.99786477]
[1739606996532,0.03518439,195.95,195.94,14.10066477]
[1739607003635,0.03518439,195.95,195.94,8.99786477]
[1739607004839,0.00150536,195.95,195.94,14.10066477]
[1739607006438,0.00150536,195.95,195.94,8.99786477]
[1739607007738,0.00150536,195.95,195.94,14.10066477]
[1739607009136,0.00150536,195.95,195.94,8.99786477]
[1739607009741,0.00150536,195.95,195.92,9.03417535]
[1739607010331,5.10400536,195.95,195.92,9.03417535]
[1739607010537,0.00150536,195.95,195.92,0.03631058]
[1739607010737,8.99786477,195.94,195.92,0.03631058]
[1739607012036,5.1031,195.93,195.92,0.03631058]
[1739607017279,5.1037,195.91,195.86,8.99786477]
[1739607017447,14.10156477,195.91,195.86,8.99786477]
[1739607017647,8.99786477,195.91,195.86,8.99786477]
[1739607017942,8.99786477,195.89,195.82,8.99786477]
[1739607018345,0.03362111,195.87,195.84,0.03481248]
[1739607020152,0.03362111,195.87,195.84,9.03267725]
[1739607020346,0.03362111,195.87,195.86,8.99786477]
[1739607021951,0.03362111,195.87,195.84,14.13787725]
[1739607022250,0.03362111,195.87,195.84,9.03267725]
[1739607025155,0.03362111,195.87,195.85,5.1051]
[1739607025849,0.03362111,195.87,195.86,14.10276477]
[1739607028656,14.10036477,195.95,195.86,8.99786477]
[1739607028847,5.1025,195.95,195.91,8.99786477]
[1739607029154,8.99786477,195.97,195.91,8.99786477]
[1739607029954,0.03851344,195.96,195.92,0.0391929]
[1739607030157,5.14081344,195.96,195.92,0.0391929]
[1739607030655,0.03851344,195.96,195.92,0.0391929]
[1739607032358,5.14091344,195.96,195.92,0.0391929]
[1739607034357,8.99786477,195.95,195.92,0.0391929]
[1739607035154,8.99786477,195.93,195.92,0.0391929]
[1739607038360,14.10096477,195.93,195.92,0.0391929]
[1739607038559,5.1031,195.93,195.92,0.0391929]
[1739607039459,14.10096477,195.93,195.92,0.0391929]
[1739607040355,5.1038,195.91,195.87,8.99786477]
[1739607040553,14.10166477,195.91,195.85,8.99786477]
[1739607041660,0.03390329,195.9,195.86,0.03902204]
[1739607042059,5.13780329,195.9,195.86,0.03902204]
[1739607044064,5.13780329,195.9,195.87,8.99786477]
[1739607044065,0.03390329,195.9,195.87,8.99786477]
[1739607044262,0.03390329,195.9,195.87,14.10236477]
[1739607044462,0.03390329,195.9,195.87,8.99786477]
[1739607049067,0.03390329,195.9,195.86,0.03902204]
[1739607049769,5.1044,195.88,195.86,0.03902204]
[1739607050961,8.99786477,195.89,195.86,0.03902204]
[1739607051869,14.10206477,195.89,195.86,0.03902204]
[1739607052070,8.99786477,195.89,195.86,0.03902204]
[1739607054175,5.1044,195.88,195.86,0.03902204]
[1739607054472,8.99786477,195.89,195.86,0.03902204]
[1739607054875,0.03390329,195.9,195.86,0.03902204]
[1739607057776,5.13770329,195.9,195.86,0.03902204]
[1739607058177,0.03390329,195.9,195.86,0.03902204]
[1739607058773,5.13780329,195.9,195.86,0.03902204]
[1739607060279,0.03390329,195.9,195.86,0.03902204]
[1739607061681,5.13780329,195.9,195.86,0.03902204]
[1739607062177,0.03390329,195.9,195.86,0.03902204]
[1739607064579,0.03390329,195.9,195.89,8.99786477]
[1739607065682,0.03390329,195.9,195.89,14.10196477]
[1739607065886,0.03390329,195.9,195.89,8.99786477]
[1739607068184,0.03390329,195.9,195.89,14.10196477]
[1739607069580,0.03390329,195.9,195.89,8.99786477]
[1739607069783,0.03390329,195.9,195.87,8.99786477]
[1739607069982,0.03390329,195.9,195.86,0.03902204]
[1739607070386,5.13780329,195.9,195.86,0.03902204]
[1739607070586,0.03390329,195.9,195.87,8.99786477]
[1739607071781,0.03390329,195.9,195.86,0.03902204]
[1739607073786,0.03390329,195.9,195.87,8.99786477]
[1739607075688,0.03390329,195.9,195.87,14.10246477]
[1739607077595,0.03390329,195.9,195.87,8.99786477]
[1739607078994,0.03390329,195.9,195.88,5.1043]
[1739607079594,0.03390329,195.9,195.87,8.99786477]
[1739607080896,0.03390329,195.9,195.87,14.10226477]
[1739607081492,0.03390329,195.9,195.87,8.99786477]
[1739607081695,0.03390329,195.9,195.89,14.10196477]
[1739607083788,0.03390329,195.9,195.89,8.99786477]
[1739607084591,0.03390329,195.9,195.89,14.10196477]
[1739607087707,0.03390329,195.9,195.89,8.99786477]
[1739607088302,0.03390329,195.9,195.89,14.10196477]
[1739607091112,0.03390329,195.9,195.89,8.99786477]
[1739607093606,0.03390329,195.9,195.87,8.99786477]
[1739607098402,5.13800329,195.9,195.86,0.03902204]
[1739607099308,0.03390329,195.9,195.86,0.03902204]
[1739607099516,5.1042,195.89,195.86,0.03902204]
[1739607099814,0.03390329,195.9,195.86,0.03902204]
[1739607100009,5.13780329,195.9,195.86,0.03902204]
[1739607101712,0.03390329,195.9,195.86,0.03902204]
[1739607101917,0.03390329,195.9,195.86,5.14392204]
[1739607106319,5.13780329,195.9,195.86,0.03902204]
[1739607108321,5.1041,195.89,195.86,0.03902204]
[1739607108822,0.03390329,195.9,195.86,0.03902204]
[1739607109018,5.13780329,195.9,195.86,0.03902204]
[1739607109917,0.03390329,195.9,195.86,0.03902204]
[1739607112224,5.13780329,195.9,195.86,0.03902204]
[1739607114226,0.03390329,195.9,195.86,0.03902204]
[1739607115426,5.13780329,195.9,195.86,0.03902204]
[1739607117026,5.1041,195.89,195.86,0.03902204]
[1739607117227,0.03390329,195.9,195.77,7.05981894]
[1739607117426,8.99786477,195.83,195.77,12.16701894]
[1739607117633,8.99786477,195.85,195.77,12.16701894]
[1739607117826,8.99786477,195.85,195.78,8.99786477]
[1739607118024,8.99786477,195.85,195.8,5.1064]
[1739607118429,12.6383326,195.97,195.84,8.99786477]
[1739607118430,8.99786477,195.91,195.84,8.99786477]
[1739607118831,0.03903373,195.89,195.84,8.99786477]
[1739607119031,0.03903373,195.89,195.86,0.03368332]
[1739607119233,0.03903373,195.89,195.86,9.03154809]
[1739607120927,0.03903373,195.89,195.88,8.99786477]
[1739607130639,0.03903373,195.89,195.86,9.03154809]
[1739607135045,0.03903373,195.89,195.88,14.10226477]
[1739607141454,3.0081,195.96,195.89,0.06096627]
[1739607141654,3.0081,195.96,195.9,8.99786477]
[1739607142659,0.03906693,195.95,195.91,0.03744527]
[1739607143056,5.14166693,195.95,195.91,0.03744527]
[1739607145060,0.03906693,195.95,195.91,0.03744527]
[1739607147661,5.14166693,195.95,195.91,0.03744527]
[1739607149165,5.1029,195.94,195.91,0.03744527]
[1739607150966,5.14166693,195.95,195.91,0.03744527]
[1739607151161,9.0369317,195.95,195.91,0.03744527]
[1739607151961,5.1031,195.93,195.91,0.03744527]
[1739607155966,0.03906693,195.95,195.91,0.03744527]
[1739607156667,5.14166693,195.95,195.91,0.03744527]
[1739607156870,0.03906693,195.95,195.91,0.03744527]
[1739607157966,0.03906693,195.95,195.92,14.10116477]
[1739607158366,0.03906693,195.95,195.92,8.99786477]
[1739607159767,0.03906693,195.95,195.94,14.10066477]
[1739607160069,0.03906693,195.95,195.94,8.99786477]
[1739607167969,0.03906693,195.95,195.94,14.10066477]
[1739607168173,8.99786477,196.05,195.94,8.99786477]
[1739607168374,8.99786477,196.05,195.99,8.99786477]
[1739607168971,14.09806477,196.05,195.99,8.99786477]
[1739607169173,5.1002,196.05,195.99,8.99786477]
[1739607169373,5.1002,196.05,196.01,8.99786477]
[1739607169374,0.03818175,196.04,196.01,8.99786477]
[1739607169569,10.63346477,196.07,196.01,8.99786477]
[1739607169875,0.03637958,196.04,196.01,0.03258487]
[1739607170077,8.99786477,196.03,196.01,0.03258487]
[1739607170473,5.1007,196.02,196.01,0.03258487]
[1739607184784,0.03637958,196.04,196.01,9.03044964]
[1739607184988,0.03637958,196.04,196.03,8.99786477]
[1739607189083,0.03637958,196.04,196.01,9.03044964]
[1739607189284,5.13657958,196.04,196.01,9.03044964]
[1739607190080,0.03637958,196.04,196.01,9.03044964]
[1739607191379,0.03637958,196.04,196.01,14.13134964]
[1739607192886,0.03637958,196.04,196.02,5.1007]
[1739607193285,0.03637958,196.04,196.03,8.99786477]
[1739607221002,0.03637958,196.04,196.03,14.09836477]
[1739607229507,5.0989,196.09,196.04,5.16372042]
[1739607229703,5.0989,196.09,196.06,8.99786477]
[1739607230611,5.1312034,196.09,196.06,9.03185645]
[1739607231309,0.0323034,196.09,196.06,9.03185645]
[1739607231706,0.0323034,196.09,196.08,8.99786477]
[1739607233612,0.0323034,196.09,196.08,14.09706477]
[1739607244208,8.99786477,196.19,196.08,8.99786477]
[1739607244414,8.99786477,196.19,196.13,8.99786477]
[1739607245317,5.0971,196.16,196.13,8.99786477]
[1739607245518,0.03488384,196.18,196.14,0.03795881]
[1739607246418,5.0968,196.17,196.14,0.03795881]
[1739607246818,0.03488384,196.18,196.14,0.03795881]
[1739607247019,5.0968,196.17,196.14,0.03795881]
[1739607247318,0.03488384,196.18,196.14,0.03795881]
[1739607247518,5.13148384,196.18,196.14,0.03795881]
[1739607248514,0.03488384,196.18,196.15,8.99786477]
[1739607248719,0.03488384,196.18,196.17,8.99786477]
[1739607249020,0.03488384,196.18,196.15,8.99786477]
[1739607250014,5.0969,196.17,196.14,0.03795881]
[1739607250318,8.99786477,196.15,196.09,8.99786477]
[1739607250510,8.99786477,196.13,196.07,8.99786477]
[1739607250715,8.99786477,196.13,196.05,8.99786477]
[1739607250914,8.99786477,196.11,196.05,8.99786477]
[1739607251114,8.99786477,196.09,196.04,58.31648401]
[1739607251311,8.99786477,196.09,196.04,0.06362042]
[1739607251515,0.03906201,196.08,196.05,0.03884287]
[1739607253021,5.0995,196.07,196.05,0.03884287]
[1739607256123,0.03906201,196.08,196.05,0.03884287]
[1739607256727,5.13826201,196.08,196.05,0.03884287]
[1739607257323,5.0994,196.07,196.05,0.03884287]
[1739607259824,0.03906201,196.08,196.05,0.03884287]
[1739607261023,5.13836201,196.08,196.05,0.03884287]
[1739607261326,0.03906201,196.08,196.05,0.03884287]
[1739607263526,0.03906201,196.08,196.05,9.03670764]
[1739607268631,0.03906201,196.08,196.07,14.09726477]
[1739607271733,1.5352,196.15,196.07,8.99786477]
[1739607271935,1.5352,196.15,196.12,8.99786477]
[1739607272833,1.56913802,196.15,196.12,9.03518039]
[1739607275639,1.56913802,196.15,196.12,0.03731562]
[1739607280445,6.66653802,196.15,196.12,0.03731562]
[1739607289848,6.66653802,196.15,196.12,9.03518039]
[1739607294552,5.13133802,196.15,196.12,9.03518039]
[1739607295355,5.13133802,196.15,196.12,0.03731562]
[1739607295356,5.0979,196.13,196.12,0.03731562]
[1739607295555,9.03180279,196.15,196.12,0.03731562]
[1739607295850,0.03393802,196.15,196.12,0.03731562]
[1739607296451,5.0976,196.14,196.12,0.03731562]
[1739607296658,0.03393802,196.15,196.12,0.03731562]
[1739607299054,5.13133802,196.15,196.12,0.03731562]
[1739607300058,5.13133802,196.15,196.12,9.03518039]
[1739607300560,0.03393802,196.15,196.12,9.03518039]
[1739607303561,0.03393802,196.15,196.12,14.13318039]
[1739607303962,0.03393802,196.15,196.14,8.99786477]
[1739607304764,0.03393802,196.15,196.14,14.09546477]
[1739607305264,8.99786477,196.25,196.14,8.99786477]
[1739607305464,8.99786477,196.25,196.19,8.99786477]
[1739607306366,5.0953,196.23,196.19,8.99786477]
[1739607306567,5.12827399,196.23,196.2,0.03399336]
[1739607307865,5.0955,196.22,196.2,0.03399336]
[1739607309069,14.09366477,196.21,196.2,0.03399336]
[1739607312867,14.09366477,196.21,196.13,3.1035]
[1739607312868,5.0972,196.16,196.13,8.99786477]
[1739607313968,5.13372761,196.16,196.13,9.03468045]
[1739607316470,0.03652761,196.16,196.13,9.03468045]
[1739607316671,0.03652761,196.16,196.15,8.99786477]
[1739607317461,0.03652761,196.16,196.13,9.03468045]
[1739607319375,0.03652761,196.16,196.15,8.99786477]
[1739607322477,0.03652761,196.16,196.15,14.09516477]
[1739607325482,41.84898786,196.24,196.18,5.0964]
[1739607325676,41.84898786,196.24,196.19,8.99786477]
[1739607326780,5.13348941,196.23,196.2,0.03307332]
[1739607330184,5.0958,196.21,196.2,0.03307332]
[1739607333480,9.03605418,196.23,196.2,0.03307332]
[1739607333789,0.03818941,196.23,196.2,0.03307332]
[1739607334690,0.03818941,196.23,196.21,8.99786477]
[1739607336689,0.03818941,196.23,196.22,5.0955]
[1739607337392,0.03818941,196.23,196.21,8.99786477]
[1739607338083,0.03818941,196.23,196.21,14.09356477]
[1739607338586,0.03818941,196.23,196.22,5.0955]
[1739607341195,5.0934,196.3,196.25,5.0947]
[1739607341495,5.0934,196.3,196.27,8.99786477]
[1739607342298,8.99786477,196.33,196.27,8.99786477]
[1739607342506,0.03440631,196.3,196.27,9.03325496]
[1739607344207,5.0939,196.29,196.27,9.03325496]
[1739607345507,0.03440631,196.3,196.27,9.03325496]
[1739607345807,5.0937,196.29,196.27,9.03325496]
[1739607346308,5.0937,196.29,196.27,0.03539019]
[1739607348708,0.03440631,196.3,196.27,0.03539019]
[1739607348909,5.094,196.28,196.27,0.03539019]
[1739607359518,0.03440631,196.3,196.27,0.03539019]
[1739607359720,0.03440631,196.3,196.27,9.03325496]
[1739607360920,0.03440631,196.3,196.29,8.99786477]
[1739607365122,0.03440631,196.3,196.29,14.09156477]
[1739607367027,0.03440631,196.3,196.29,8.99786477]
[1739607373325,0.03440631,196.3,196.29,14.09156477]
[1739607373522,5.0919,196.36,196.34,8.99786477]
[1739607374830,0.03372083,196.37,196.34,8.99786477]
[1739607375032,5.12532083,196.37,196.34,8.99786477]
[1739607376527,0.03372083,196.37,196.34,8.99786477]
[1739607376722,0.03372083,196.37,196.36,8.99786477]
[1739607384341,0.03372083,196.37,196.34,8.99786477]
[1739607384537,5.0921,196.36,196.34,8.99786477]
[1739607384843,9.0315856,196.37,196.33,0.0334771]
[1739607385441,5.0924,196.34,196.33,0.0334771]
[1739607393449,5.0921,196.36,196.33,0.0334771]
[1739607393648,0.03372083,196.37,196.33,0.0334771]
[1739607394553,5.092,196.36,196.33,0.0334771]
[1739607395252,0.03372083,196.37,196.33,0.0334771]
[1739607396455,5.0919,196.36,196.33,0.0334771]
[1739607396655,5.0919,196.36,196.34,8.99786477]
[1739607396956,0.03372083,196.37,196.34,8.99786477]
[1739607400756,0.03372083,196.37,196.36,8.99786477]
[1739607404055,0.03372083,196.37,196.34,8.99786477]
[1739607405066,5.0921,196.36,196.34,8.99786477]
[1739607408563,0.03372083,196.37,196.34,8.99786477]
[1739607408758,0.03372083,196.37,196.33,0.0334771]
[1739607408958,9.0315856,196.37,196.33,0.0334771]
[1739607409257,5.0924,196.34,196.33,0.0334771]
[1739607414764,5.0937,196.29,196.26,8.99786477]
[1739607415765,0.03844011,196.29,196.26,9.0362773]
[1739607416664,5.13224011,196.29,196.26,9.0362773]
[1739607418766,5.094,196.28,196.26,9.0362773]
[1739607420866,5.0942,196.27,196.26,0.03841253]
[1739607421265,0.03844011,196.29,196.26,0.03841253]
[1739607421661,5.0941,196.28,196.26,0.03841253]
[1739607426268,0.03844011,196.29,196.26,9.0362773]
[1739607426471,0.03844011,196.29,196.28,8.99786477]
[1739607428862,0.03844011,196.29,196.28,14.09186477]
[1739607431975,8.99786477,196.38,196.31,5.093]
[1739607432175,5.0918,196.37,196.34,8.99786477]
[1739607432970,5.0921,196.35,196.32,8.99786477]
[1739607433173,5.0921,196.35,196.34,0.03491774]
[1739607437376,5.12724741,196.37,196.34,0.03491774]
[1739607437580,0.03554741,196.37,196.34,0.03491774]
[1739607439381,5.12724741,196.37,196.34,0.03491774]
[1739607439580,5.12724741,196.37,196.34,9.03278251]
[1739607442382,0.03554741,196.37,196.34,9.03278251]
[1739607443683,0.03554741,196.37,196.34,14.12498251]
[1739607444084,0.03554741,196.37,196.34,9.03278251]
[1739607444283,0.03554741,196.37,196.35,5.0921]
[1739607444486,0.03554741,196.37,196.36,8.99786477]
[1739607444885,0.03554741,196.37,196.36,14.08976477]
[1739607445875,0.03554741,196.37,196.36,8.99786477]
[1739607447584,0.03554741,196.37,196.34,9.03278251]
[1739607447779,0.03554741,196.37,196.34,0.03491774]
[1739607449987,5.0921,196.36,196.34,0.03491774]
[1739607450284,0.03554741,196.37,196.34,0.03491774]
[1739607450495,5.0919,196.36,196.34,0.03491774]
[1739607452290,0.03554741,196.37,196.34,0.03491774]
[1739607452490,5.0919,196.36,196.34,0.03491774]
[1739607453986,0.03554741,196.37,196.34,0.03491774]
[1739607454189,0.03554741,196.37,196.34,9.03278251]
[1739607454793,5.12724741,196.37,196.34,9.03278251]
[1739607455186,5.0921,196.36,196.34,9.03278251]
[1739607455386,0.03554741,196.37,196.34,9.03278251]
[1739607455899,5.0919,196.36,196.34,9.03278251]
[1739607456690,0.03554741,196.37,196.34,9.03278251]
[1739607456889,5.12714741,196.37,196.34,9.03278251]
[1739607462695,5.0919,196.36,196.34,9.03278251]
[1739607464800,5.0921,196.35,196.34,0.03491774]
[1739607479410,5.12744741,196.37,196.34,0.03491774]
[1739607479612,5.12744741,196.37,196.34,8.10570717]
[1739607481913,0.03554741,196.37,196.34,8.10570717]
[1739607482916,0.03554741,196.37,196.36,8.07078943]
[1739607485613,0.03554741,196.37,196.36,13.16268943]
[1739607488419,5.0907,196.41,196.37,0.06445259]
[1739607489316,5.0901,196.43,196.38,13.16208943]
[1739607489718,0.03877275,196.42,196.39,0.03718922]
[1739607492025,0.03877275,196.42,196.39,5.12818922]
[1739607493919,0.03877275,196.42,196.39,0.03718922]
[1739607494122,5.12917275,196.42,196.39,0.03718922]
[1739607494318,0.03877275,196.42,196.39,0.03718922]
[1739607494518,5.12907275,196.42,196.39,0.03718922]
[1739607494822,0.03877275,196.42,196.39,0.03718922]
[1739607495217,0.03877275,196.42,196.4,8.07078943]
[1739607503523,0.03877275,196.42,196.41,5.0906]
[1739607504227,0.03877275,196.42,196.4,13.16158943]
[1739607504526,0.03877275,196.42,196.4,8.07078943]
[1739607505829,5.12917275,196.42,196.4,8.07078943]
[1739607506031,0.03877275,196.42,196.4,8.07078943]
[1739607506728,0.03877275,196.42,196.4,13.16148943]
[1739607506929,0.03877275,196.42,196.4,8.07078943]
[1739607510735,0.03877275,196.42,196.4,13.16158943]
[1739607511632,0.03877275,196.42,196.4,8.07078943]
[1739607511834,0.03877275,196.42,196.41,5.0906]
[1739607518337,0.03877275,196.42,196.41,8.06043488]
[1739607519237,0.03877275,196.42,196.41,13.15103488]
[1739607523744,7.275e-05,196.42,196.41,13.15103488]
[1739607524043,5.088,196.51,196.46,5.0893]
[1739607524235,5.088,196.51,196.47,8.05741134]
[1739607525041,5.088,196.51,196.47,8.09386899]
[1739607528146,5.0877,196.52,196.47,8.09386899]
[1739607528349,5.0877,196.52,196.49,8.05741134]
[1739607528852,5.0875,196.54,196.51,8.05741134]
[1739607529346,5.0875,196.54,196.51,8.08951137]
[1739607530550,6.6432,196.55,196.51,8.08951137]
[1739607531344,1.5562,196.55,196.51,8.08951137]
[1739607532251,5.0875,196.53,196.51,8.08951137]
[1739607532653,1.5562,196.55,196.51,8.08951137]
[1739607533853,5.0877,196.52,196.51,8.08951137]
[1739607534053,1.5562,196.55,196.51,8.08951137]
[1739607534454,5.0875,196.53,196.51,8.08951137]
[1739607536855,5.0877,196.52,196.51,8.08951137]
[1739607537052,8.05741134,196.57,196.51,8.08951137]
[1739607537455,5.0875,196.53,196.51,8.08951137]
[1739607538557,8.05741134,196.57,196.51,8.08951137]
[1739607538753,5.0873,196.54,196.51,8.08951137]
[1739607540055,8.05741134,196.57,196.51,8.08951137]
[1739607540758,5.0875,196.54,196.51,8.08951137]
[1739607545459,8.05741134,196.57,196.51,8.08951137]
[1739607545759,5.0873,196.54,196.51,8.08951137]
[1739607546158,5.0862,196.58,196.53,8.05741134]
[1739607546361,3.0519,196.6,196.55,8.05741134]
[1739607546561,3.0519,196.6,196.57,8.05741134]
[1739607546964,3.0519,196.6,196.57,8.09188295]
[1739607547160,1.5509,196.6,196.57,8.09188295]
[1739607547365,9.70051134,196.63,196.57,8.09188295]
[1739607547966,5.0855,196.61,196.57,8.09188295]
[1739607548171,9.70051134,196.63,196.57,0.03447161]
[1739607548474,5.0862,196.58,196.57,0.03447161]
[1739607555278,5.0859,196.6,196.57,0.03447161]
[1739607555475,8.05741134,196.63,196.57,8.09188295]
[1739607555675,8.05741134,196.65,196.59,8.05741134]
[1739607556173,5.0854,196.62,196.6,0.03502675]
[1739607556869,5.0848,196.64,196.6,0.03502675]
[1739607557268,8.05741134,196.67,196.61,8.05741134]
[1739607558080,5.0844,196.65,196.61,8.05741134]
[1739607559774,5.0841,196.67,196.61,8.05741134]
[1739607560175,5.0841,196.66,196.63,8.05741134]
[1739607560679,5.0841,196.66,196.63,8.09451558]
[1739607561381,5.0838,196.68,196.63,8.09451558]
[1739607561681,12.64831134,196.69,196.63,8.09451558]
[1739607561882,5.0839,196.67,196.63,8.09451558]
[1739607564382,12.64831134,196.69,196.63,8.09451558]
[1739607564882,5.0844,196.66,196.63,8.09451558]
[1739607565277,12.64831134,196.69,196.63,8.09451558]
[1739607565484,5.0846,196.64,196.63,8.09451558]
[1739607565682,5.0846,196.64,196.63,0.03710424]
[1739607569685,5.0844,196.66,196.63,0.03710424]
[1739607570086,8.05741134,196.69,196.63,0.03710424]
[1739607572286,5.0843,196.66,196.63,0.03710424]
[1739607573386,5.0839,196.67,196.63,8.09451558]
[1739607573585,8.05741134,196.69,196.63,8.09451558]
[1739607575187,13.14081134,196.69,196.63,13.17921558]
[1739607575490,8.05741134,196.69,196.63,8.09451558]
[1739607575689,5.0842,196.66,196.63,8.09451558]
[1739607576378,5.0846,196.64,196.63,8.09451558]
[1739607576783,5.0846,196.64,196.63,0.03710424]
[1739607579986,5.0844,196.65,196.63,0.03710424]
[1739607580387,5.0844,196.65,196.63,8.09451558]
[1739607582592,5.084,196.67,196.63,8.09451558]
[1739607583195,8.05741134,196.69,196.63,8.09451558]
[1739607584188,8.05741134,196.65,196.63,0.03710424]
[1739607584388,8.05741134,196.65,196.57,8.05741134]
[1739607584589,8.05741134,196.63,196.62,0.03360616]
[1739607586095,13.14231134,196.63,196.62,0.03360616]
[1739607588497,5.0849,196.63,196.62,0.03360616]
[1739607600803,13.14231134,196.63,196.62,0.03360616]
[1739607601004,5.0864,196.58,196.53,71.9304729]
[1739607601303,8.05741134,196.59,196.53,71.9304729]
[1739607601506,5.0865,196.57,196.53,71.9304729]
[1739607602205,5.12332793,196.57,196.53,71.96669562]
[1739607602807,5.0869,196.56,196.53,63.90928428]
[1739607603000,8.09423927,196.57,196.53,63.90928428]
[1739607604013,13.18093927,196.57,196.53,0.03622272]
[1739607605315,8.09423927,196.57,196.53,0.03622272]
[1739607605516,8.05741134,196.55,196.53,0.03622272]
[1739607606117,5.0872,196.54,196.53,0.03622272]
[1739607606417,8.09423927,196.57,196.53,0.03622272]
[1739607606618,5.087,196.55,196.53,0.03622272]